[Event "Catalan University-ch 2024"]
[Site "Barcelona"]
[Date "2024.02.24"]
[Round "1.1"]
[White "Povill Claros, Laura"]
[Black "Adan Bermudez, Sergio"]
[Result "0-1"]
[ECO "B30"]
[WhiteElo "1854"]
[BlackElo "2299"]
[Annotator "TA"]
[PlyCount "74"]
[EventDate "2024.02.24"]
[EventCountry "ESP"]
[SourceTitle "playchess.com"]
[Source "ChessBase"]
[SourceQuality "1"]
[TimeControl "5400+30"]

{[%evp 11,74,32,24,-23,1,0,0,0,0,0,0,-40,-33,-38,-46,-45,-49,-43,-12,-92,-93,-81,-77,-96,-88,-143,-128,-136,-143,-145,-144,-133,-144,-166,-169,-163,-126,-124,-122,-124,-16,-17,-17,-15,-14,-68,-81,-70,-58,-120,-119,-291,-285,-261,-207,-388,-394,-410,-415,-366,-279,-281,-276,-268,-260]} 1. e4 {[%emt 1:20:59]} c5 {[%emt 1:20:57]} 2. Nf3 {[%emt 0:00:30]} Nc6 {[%emt 0:00:31]} 3. Bb5 {[%emt 0:00:32]} e6 {[%emt 0:00:30]} 4. O-O {[%emt 0:00:41]} Nge7 {[%emt 0:00:30]} 5. Re1 {[%emt 0:00:39]} Nd4 {[%emt 0:01:05]} 6. Nxd4 {[%emt 0:00:59]} cxd4 {[%emt 0:00:31]} 7. e5 {[%emt 0:00:50]} (7. c3 $142) 7... Qa5 {[%emt 0:01:27]} 8. Bd3 {[%emt 0:01:37][%cal Ob2b4]} Ng6 {[%emt 0:00:40]} 9. Bxg6 {[%emt 0:01:13] The position is equal.} hxg6 {[%emt 0:00:31]} 10. d3 {[%emt 0:00:53]} b6 {[%emt 0:01:33]} 11. Nd2 {[%emt 0:00:36]} Bb7 {[%emt 0:00:33] Prevents Qf3} 12. Nc4 {[%emt 0:01:03]} Qd5 {[%emt 0:00:37][%csl Gb7][%cal Rd5g2]} 13. f3 {[%emt 0:00:30]} Rc8 {[%emt 0:01:07]} 14. a4 {[%emt 0:00:47]} Rh5 {[%emt 0:00:52]} 15. Bf4 {[%emt 0:00:42] [#]} (15. Qd2 $11) 15... g5 $1 $17 {[%emt 0:00:33]} 16. Bg3 {[%emt 0:00:31] [#]} g4 $1 $36 {[%emt 0:00:32][%mdl 2048] Black is really pushing.} 17. Rf1 {[%emt 0:01:32]} (17. Nd2 Qc6) 17... Rf5 {[%emt 0:01:23][%cal Rg4f3] Black is more active.} 18. Qe2 {[%emt 0:01:51]} ({White should try} 18. Nd2) 18... gxf3 {[%emt 0:00:31]} 19. gxf3 {[%emt 0:00:30]} Rxf3 {[%emt 0:00:35]} 20. Rxf3 {[%emt 0:00:29]} Qxf3 {[%emt 0:00:30]} 21. Qxf3 {[%emt 0:00:33]} Bxf3 {[%emt 0:00:29]} 22. Rf1 {[%emt 0:00:39]} Bd5 {[%emt 0:00:31]} 23. b3 {[%emt 0:00:46]} Bc5 {[%emt 0:00:56]} 24. Rf4 {[%emt 0:01:08]} a6 {[%emt 0:00:40]} 25. Rh4 {[%emt 0:00:40] Rh8+ would now be deadly.} Kd8 {[%emt 0:02:27]} ({Black should play} 25... Ke7 $17 {aiming for ...b5.} 26. Rh5 Rg8) 26. Nd6 {[%emt 0:00:58] White wants to mate with Rh8+.} Rb8 {[%emt 0:00:57]} 27. Nxf7+ {[%emt 0:00:45]} Kc7 {[%emt 0:00:29]} 28. Rg4 {[%emt 0:00:42]} (28. Bf2 $11) 28... Bf3 $15 {[%emt 0:00:43]} 29. Rxg7 {[%emt 0:00:33]} Bd1 $1 {[%emt 0:00:29] This pair of bishops is nice.} 30. Ng5 {[%emt 0:00:36]} (30. Be1 $15) 30... Kc6 $17 {[%emt 0:00:31]} 31. Ne4 $2 {[%emt 0:00:32] White does not recover from this.} (31. h4 $17 {was necessary.}) 31... Bxc2 $19 {[%emt 0:00:31]} 32. Nf6 {[%emt 0:00:51]} Rd8 {[%emt 0:00:49]} (32... Bxb3 33. Nxd7 Rb7 34. Nxc5 bxc5 (34... Rxg7 35. Nxb3 Kd5 36. Kf1 $14) 35. Rxb7 Kxb7 36. Kf2 Bxa4 37. h4 $19) 33. Bh4 $2 {[%emt 0:00:37]} (33. h4) 33... Bxd3 {[%emt 0:00:36]} 34. Ng4 {[%emt 0:00:34]} Rf8 {[%emt 0:00:38]} 35. Nf6 {[%emt 0:00:33]} Be2 {[%emt 0:00:43]} (35... Rh8 36. Bg5 $19) 36. Nxd7 {[%emt 0:00:35]} d3+ {[%emt 0:00:30]} 37. Nxc5 {[%emt 0:00:29]} d2 {[%emt 0:00:32] Weighted Error Value: White=0.27 (precise) /Black=0.16 (very precise) .  Loses game:     	White=1     	---        Mistake:       	White=5     	Black=1      Inaccurate:     	White=1     	Black=1      OK:         	White=9     	Black=15     Best:        	White=3     	Black=2      Strong:       	---       	Black=2} ({Don't play} 37... bxc5 38. Bg5 $19) 0-1

[Event "Catalan University-ch 2024"]
[Site "Barcelona"]
[Date "2024.02.24"]
[Round "1.3"]
[White "Huerta Llorens, Arnau"]
[Black "Roca Planas, Edgar"]
[Result "0-1"]
[ECO "B12"]
[WhiteElo "1888"]
[BlackElo "2248"]
[Annotator "TA"]
[PlyCount "87"]
[EventDate "2024.02.24"]
[EventCountry "ESP"]
[SourceTitle "playchess.com"]
[Source "ChessBase"]
[SourceQuality "1"]
[TimeControl "5400+30"]

{[%evp 9,87,0,1,0,0,-2,0,-60,-2,-186,-65,-62,-56,-52,18,13,14,16,4,-14,4,-129,61,47,36,0,0,0,0,0,0,0,0,-107,-60,-58,58,56,53,53,133,138,151,154,125,31,41,0,0,0,25,-52,-34,-66,479,-45,-47,-58,-50,-52,-60,-93,-44,-138,-139,-139,-139,-148,-151,-263,-255,-268,-253,-259,-239,-337,-222,-468,-468,-1285]} 1. e4 {[%emt 1:20:58]} c6 {[%emt 1:21:09]} 2. d4 {[%emt 0:00:32]} d5 {[%emt 0:00:33]} 3. f3 {[%emt 0:00:30]} e6 {[%emt 0:00:30]} 4. Nc3 {[%emt 0:00:34]} Bb4 {[%emt 0:00:30]} 5. Bf4 {[%emt 0:00:31]} Nd7 {[%emt 0:01:30]} 6. Qd2 {[%emt 0:01:18]} Ne7 {[%emt 0:00:30]} 7. O-O-O {[%emt 0:00:50]} O-O {[%emt 0:00:31]} 8. g4 {[%emt 0:09:17]} (8. Kb1 $11) 8... Qa5 {[%emt 0:01:57]} (8... dxe4 $15 9. fxe4 e5 10. dxe5 Ng6) 9. Kb1 $2 (9. a3 $11 Bxc3 10. Qxc3 Qxc3 11. bxc3) 9... Bxc3 {[%emt 0:07:50]} (9... dxe4 $19 10. fxe4 e5 11. dxe5 Nc5) 10. Qxc3 $15 {[%emt 0:00:00]} Qxc3 {[%emt 0:00:00]} 11. bxc3 {[%emt 0:00:00]} Ng6 {[%emt 0:00:00]} (11... e5 $15 12. Bg5 f6) 12. Bd6 $11 {[%emt 0:00:00]} Re8 {[%emt 0:00:00]} 13. h4 {[%emt 0:00:00]} dxe4 {[%emt 0:00:00]} 14. fxe4 {[%emt 0:00:00]} Nf6 {[%emt 0:00:00]} 15. h5 {[%emt 0:00:00]} (15. Re1 $11 {remains equal.}) 15... Nf8 $2 {[%emt 0:00:00]} (15... Nxe4 $17 16. hxg6 hxg6 (16... Nxd6 17. gxh7+ Kh8 18. Nf3 $16)) 16. Bd3 {[%emt 0:00:00]} Nxg4 {[%emt 0:00:00]} 17. Nh3 {[%emt 0:00:00] Prevents Nf2} e5 {[%emt 0:00:00]} 18. Rdg1 {[%emt 0:01:31]} h6 {[%emt 0:00:00]} 19. Be2 {[%emt 0:00:41]} Nf6 {[%emt 0:00:00]} 20. Bxe5 {[%emt 0:00:36] A strong pair of Bishops.} (20. dxe5 Nxe4 21. Bd3 Nd2+ (21... Nxc3+ $2 22. Kb2 $19) 22. Kc1 Nf3 $19) 20... N8d7 {[%emt 0:00:00]} 21. Bf4 {[%emt 0:01:02]} (21. Bxf6 $11 Nxf6 22. e5) 21... Kh8 {[%emt 0:00:05]} (21... Rxe4 $2 22. Bxh6 Ne8 (22... Rxe2 $2 23. Rxg7+ Kh8 24. Ng5 $18) (22... Kh7 $2 23. Ng5+ Kxh6 24. Nxf7+ Kh7 25. Bd3 $18) 23. Bxg7 Nxg7 24. h6 $18) ({Black should try} 21... Nxe4 $17 22. Bd3 Kh8 (22... Nxc3+ 23. Kb2 $14)) 22. e5 $15 {[%emt 0:00:34]} Nd5 {[%emt 0:00:28]} (22... Ne4 $1 $15 23. Bd3 Nxc3+ 24. Ka1 Nd5) 23. Bd2 $14 {[%emt 0:00:35]} f6 {[%emt 0:00:42]} 24. c4 $36 {[%emt 0:00:48][%mdl 2048] White has the initiative.} Ne7 {[%emt 0:00:52]} (24... Nc7 $14) 25. Bc3 {[%emt 0:00:53]} fxe5 {[%emt 0:00:55]} 26. dxe5 {[%emt 0:00:29] aiming for e6.} Nc5 {[%emt 0:00:29][%cal Ob7b5,Bd7c5,Bc5e6,Be6f4][%mdl 32] [#]} 27. Nf4 {[%emt 0:00:44]} ({White should play} 27. e6 $1 $16 Nf5 28. Bg4) 27... Ne6 {[%emt 0:05:29]} 28. Ng6+ {[%emt 0:00:59]} Nxg6 {[%emt 0:00:00]} 29. hxg6 {[%emt 0:00:40]} (29. Rxg6 $2 {too greedy.} Nf4 30. Bd3 Nxg6 31. hxg6 c5 $19) 29... Nf4 {[%emt 0:00:00]} 30. Bd3 {[%emt 0:00:47]} (30. Bd1 $11 Nh3 31. Rf1) 30... Be6 {[%emt 0:00:00]} 31. Bd2 {[%emt 0:00:34]} Rf8 {[%emt 0:00:00][%mdl 8192] Black is more active.} (31... Nxd3 $15 {keeps the upper hand.} 32. cxd3 Bf5) 32. Rf1 $2 {[%emt 0:00:41]} ({White must play} 32. Rxh6+ $1 $18 Kg8 33. Rh7) 32... Nxd3 $15 {[%emt 0:00:00]} 33. cxd3 {[%emt 0:00:29]} Bf5 {[%emt 0:00:00]} 34. Kc2 {[%emt 0:00:50] [#] Hoping for Bb4.} Bxg6 {[%emt 0:00:00]} 35. Rfg1 {[%emt 0:00:31]} Bf5 {[%emt 0:00:00]} (35... Kh7 $17 {White must now prevent ...Rf3.} 36. Rg3 Rf7) 36. Bxh6 {[%emt 0:00:31]} gxh6 $17 {[%emt 0:00:20]} 37. Rxh6+ {[%emt 0:00:29]} Bh7 {[%emt 0:00:29]} 38. Rgh1 {[%emt 0:00:36]} Rf7 39. e6 {[%emt 0:00:23]} (39. Kc3 $17) 39... Re7 $19 {[%emt 0:00:58]} 40. Kc3 {[%emt 0:00:31]} Rd8 {[%emt 0:00:39]} 41. d4 {[%emt 0:00:29]} Rd6 {[%emt 0:00:29]} 42. Rf1 {[%emt 0:00:32]} (42. Kb4 $142) 42... Rdxe6 {[%emt 0:00:33]} 43. Rf8+ $2 {[%emt 0:00:29]} (43. Rxe6 Rxe6 44. Rf8+ Kg7 45. Rb8) 43... Kg7 {[%emt 0:00:29]} 44. d5 {[%emt 0:00:00] Black used his chance.   Weighted Error Value: White=0.64/Black=0.44.  Loses game:     	White=1     	Black=1      Missed win:     	White=1     	---        Mistake:       	White=10    	Black=8      Inaccurate:     	White=4     	Black=1      OK:         	White=6     	Black=16     Best:        	White=4     	Black=2} (44. Rxe6 $142 Kxf8 (44... Rxe6 $2 45. Ra8 $19) 45. Rh6) 0-1

[Event "Catalan University-ch 2024"]
[Site "Barcelona"]
[Date "2024.02.24"]
[Round "1.4"]
[White "Sole Pijuan, Ferran"]
[Black "De la Riva Real, Ariadna"]
[Result "1-0"]
[ECO "D00"]
[WhiteElo "2136"]
[BlackElo "1589"]
[Annotator "RC"]
[PlyCount "95"]
[EventDate "2024.02.24"]
[EventCountry "ESP"]
[SourceTitle "playchess.com"]
[Source "ChessBase"]
[SourceQuality "1"]
[TimeControl "5400+30"]

1. d4 {[%emt 1:21:01]} d5 {[%emt 1:20:59]} 2. Nc3 {[%emt 0:00:42]} Nf6 {[%emt 0:00:37]} 3. Bf4 {[%emt 0:00:32]} c6 {[%emt 0:00:42]} 4. e3 {[%emt 0:00:33]} e6 {[%emt 0:00:44]} 5. g4 {[%emt 0:00:39]} h6 {[%emt 0:01:44]} 6. Bd3 {[%emt 0:01:17]} Bd6 {[%emt 0:00:33]} 7. Bg3 {[%emt 0:01:05]} Bxg3 {[%emt 0:00:47]} 8. hxg3 {[%emt 0:00:30]} Nbd7 {[%emt 0:00:30]} 9. g5 {[%emt 0:00:30]} Ng8 {[%emt 0:00:45]} 10. Qg4 {[%emt 0:01:17]} g6 {[%emt 0:01:52]} 11. f4 {[%emt 0:01:31]} h5 {[%emt 0:00:51]} 12. Qf3 {[%emt 0:00:29]} b5 {[%emt 0:00:59]} 13. e4 {[%emt 0:01:01]} b4 {[%emt 0:00:40]} 14. Na4 {[%emt 0:00:41]} Qa5 {[%emt 0:00:46]} 15. b3 {[%emt 0:00:29]} Ne7 {[%emt 0:00:48]} 16. e5 {[%emt 0:00:54]} Ba6 {[%emt 0:00:48]} 17. g4 {[%emt 0:00:32]} h4 {[%emt 0:00:42]} 18. Bxa6 {[%emt 0:00:34]} Qxa6 {[%emt 0:00:29]} 19. Qf2 {[%emt 0:00:30]} Rc8 {[%emt 0:02:45]} 20. Rxh4 {[%emt 0:00:40]} Rf8 {[%emt 0:00:31]} 21. Nc5 {[%emt 0:00:34]} Nxc5 {[%emt 0:00:45]} 22. dxc5 {[%emt 0:00:29]} Qa3 {[%emt 0:00:34]} 23. Qd4 {[%emt 0:00:39]} a5 {[%emt 0:00:40]} 24. Ne2 {[%emt 0:00:55]} Rb8 {[%emt 0:00:53]} 25. Nc1 {[%emt 0:01:07]} Nc8 {[%emt 0:00:37]} 26. Nd3 {[%emt 0:00:37]} Na7 {[%emt 0:00:35]} 27. f5 {[%emt 0:00:33]} Nb5 {[%emt 0:00:31]} 28. Qf2 {[%emt 0:00:32]} a4 {[%emt 0:00:39]} 29. fxe6 {[%emt 0:01:18]} fxe6 {[%emt 0:00:31]} 30. Qxf8+ {[%emt 0:00:29]} Kxf8 {[%emt 0:00:29]} 31. Rh8+ {[%emt 0:00:28]} Ke7 {[%emt 0:00:35]} 32. Rxb8 {[%emt 0:00:31]} axb3 {[%emt 0:00:40]} 33. Rb7+ {[%emt 0:00:32]} Kd8 {[%emt 0:00:31]} 34. cxb3 {[%emt 0:00:30]} Nd4 {[%emt 0:00:33]} 35. Kf2 {[%emt 0:00:40]} Kc8 {[%emt 0:00:32]} 36. Rg7 {[%emt 0:00:32]} Nxb3 {[%emt 0:00:31]} 37. Rh1 {[%emt 0:00:29]} Qxa2+ {[%emt 0:00:30]} 38. Kg3 {[%emt 0:00:40]} Qa5 {[%emt 0:00:34]} 39. Rh8+ {[%emt 0:00:30]} Qd8 {[%emt 0:00:29]} 40. Rxd8+ {[%emt 0:00:29]} Kxd8 {[%emt 0:00:29]} 41. Nxb4 {[%emt 0:00:31]} Nxc5 {[%emt 0:00:29]} 42. Nxc6+ {[%emt 0:00:30]} Ke8 {[%emt 0:00:30]} 43. Rxg6 {[%emt 0:00:35]} Kd7 {[%emt 0:00:33]} 44. Nd4 {[%emt 0:00:32]} Ke7 {[%emt 0:00:35]} 45. Rg7+ {[%emt 0:00:30]} Kf8 {[%emt 0:00:29]} 46. Rc7 {[%emt 0:00:29]} Ne4+ {[%emt 0:00:30]} 47. Kh4 {[%emt 0:00:31]} Nf2 {[%emt 0:00:33]} 48. Nxe6+ {[%emt 0:00:30]} 1-0

[Event "Catalan University-ch 2024"]
[Site "Barcelona"]
[Date "2024.02.24"]
[Round "1.5"]
[White "Cano Vila, Eduard"]
[Black "Garcia Escoda, Marc"]
[Result "0-1"]
[ECO "A45"]
[WhiteElo "1824"]
[BlackElo "2074"]
[Annotator "NA RC"]
[PlyCount "136"]
[EventDate "2024.02.24"]
[EventCountry "ESP"]
[SourceTitle "playchess.com"]
[Source "ChessBase"]
[SourceQuality "1"]
[TimeControl "5400+30"]

1. d4 {[%emt 1:20:57]} Nf6 {[%emt 1:20:56]} 2. Bf4 {[%emt 0:00:37]} c5 {[%emt 0:00:29]} 3. c3 {[%emt 0:00:30]} Qb6 {[%emt 0:00:29]} 4. Qb3 {[%emt 0:00:50]} Qxb3 {[%emt 0:00:39]} 5. axb3 {[%emt 0:00:29]} cxd4 {[%emt 0:10:27]} 6. cxd4 {[%emt 0:00:29]} Nc6 {[%emt 0:00:00]} 7. e3 {[%emt 0:01:18]} Nd5 {[%emt 0:00:00]} 8. Bg3 {[%emt 0:09:20]} Ndb4 9. Na3 {[%emt 0:00:00]} d6 {[%emt 0:00:00]} 10. Nf3 {[%emt 0:00:00]} g6 {[%emt 0:00:00]} 11. Bb5 {[%emt 0:00:00]} Bg7 {[%emt 0:00:00]} 12. Rc1 {[%emt 0:00:00]} O-O {[%emt 0:00:00]} 13. O-O {[%emt 0:00:00]} a6 {[%emt 0:00:00]} 14. Bxc6 {[%emt 0:00:00]} bxc6 {[%emt 0:00:00]} 15. Nc2 {[%emt 0:00:00]} Nxc2 {[%emt 0:00:00]} 16. Rxc2 {[%emt 0:00:00]} Bd7 {[%emt 0:00:00]} 17. Ra1 {[%emt 0:00:15]} Rfb8 {[%emt 0:00:09]} 18. Nd2 {[%emt 0:00:37]} Rb6 {[%emt 0:00:52]} 19. h3 {[%emt 0:01:12]} Bf5 {[%emt 0:00:42]} 20. Rc4 {[%emt 0:00:54]} Bd3 {[%emt 0:01:04]} 21. Rc3 {[%emt 0:00:44]} Bb5 {[%emt 0:00:35]} 22. Rc2 {[%emt 0:00:44]} Rc8 {[%emt 0:00:51]} 23. Rac1 {[%emt 0:00:49]} Rb7 {[%emt 0:00:45]} 24. d5 {[%emt 0:01:31]} Rbc7 {[%emt 0:00:52]} 25. e4 {[%emt 0:00:58]} Kf8 {[%emt 0:01:32]} 26. f3 {[%emt 0:00:43]} Ke8 {[%emt 0:00:43]} 27. Bf2 {[%emt 0:00:41]} Kd7 {[%emt 0:00:50]} 28. Nc4 {[%emt 0:00:29]} Bxc4 {[%emt 0:00:34]} 29. Rxc4 {[%emt 0:00:30]} cxd5 {[%emt 0:00:38]} 30. exd5 {[%emt 0:00:42]} Bxb2 {[%emt 0:00:53]} 31. Rxc7+ {[%emt 0:00:41]} Rxc7 32. Rxc7+ {[%emt 0:00:23]} Kxc7 {[%emt 0:00:58]} 33. Kf1 {[%emt 0:00:32]} Ba3 {[%emt 0:00:35]} 34. Ke2 {[%emt 0:00:31]} Bc5 {[%emt 0:00:30]} 35. Be1 {[%emt 0:00:29]} Kb6 {[%emt 0:00:34]} 36. Kd3 {[%emt 0:00:30]} Kb5 {[%emt 0:00:31]} 37. Bc3 {[%emt 0:00:29]} Bf2 {[%emt 0:00:36]} 38. Bd2 {[%emt 0:00:30]} Kc5 {[%emt 0:00:39]} 39. Ke4 {[%emt 0:00:30]} Bh4 {[%emt 0:00:36]} 40. Bc3 {[%emt 0:00:28]} Bf6 {[%emt 0:00:35]} 41. Bd2 {[%emt 0:00:29]} e6 {[%emt 0:00:41]} 42. dxe6 {[%emt 0:00:32]} fxe6 {[%emt 0:00:29]} 43. Be1 {[%emt 0:00:32]} d5+ {[%emt 0:00:31]} 44. Kd3 {[%emt 0:00:29]} e5 {[%emt 0:00:36]} 45. Bf2+ {[%emt 0:00:31]} Kb4 {[%emt 0:00:34]} 46. Kc2 {[%emt 0:00:29]} Bg5 {[%emt 0:00:40]} 47. Be1+ {[%emt 0:00:29]} Kc5 {[%emt 0:00:55]} 48. Kd3 {[%emt 0:00:30]} Bf4 {[%emt 0:00:12]} 49. Bc3 {[%emt 0:00:30]} Kd6 {[%emt 0:00:35]} 50. Be1 {[%emt 0:00:30]} Ke6 {[%emt 0:00:29]} 51. Bf2 {[%emt 0:00:30]} Bc1 {[%emt 0:00:31]} 52. g4 {[%emt 0:00:30]} Ba3 {[%emt 0:00:29]} 53. Be1 {[%emt 0:00:29]} Bc5 {[%emt 0:00:31]} 54. Bd2 {[%emt 0:00:30]} Kf6 {[%emt 0:00:30]} 55. Bc1 {[%emt 0:00:30]} Bf2 {[%emt 0:00:32]} 56. Bd2 {[%emt 0:00:29]} Bg3 {[%emt 0:00:29]} 57. Bc1 {[%emt 0:00:33]} Bf4 {[%emt 0:00:30]} 58. Bb2 {[%emt 0:00:29]} Kg5 {[%emt 0:00:29]} 59. Kc3 {[%emt 0:00:33]} Kh4 {[%emt 0:00:32]} 60. Kb4 {[%emt 0:00:28]} Kxh3 {[%emt 0:00:41]} 61. Ka5 {[%emt 0:00:36]} Kg3 {[%emt 0:00:24]} 62. Kxa6 {[%emt 0:00:22]} Kxf3 {[%emt 0:00:30]} 63. b4 {[%emt 0:00:29]} d4 {[%emt 0:00:32]} 64. b5 {[%emt 0:00:28]} d3 {[%emt 0:00:29]} 65. Bc3 {[%emt 0:00:30]} d2 {[%emt 0:00:31]} 66. Bxd2 {[%emt 0:00:31]} Bxd2 {[%emt 0:00:29]} 67. b6 {[%emt 0:00:28]} Bf4 {[%emt 0:00:30]} 68. b7 {[%emt 0:00:30]} e4 {[%emt 0:00:28]} 0-1

[Event "Catalan University-ch 2024"]
[Site "Barcelona"]
[Date "2024.02.24"]
[Round "1.6"]
[White "Sayrol Clols, Josep Maria"]
[Black "Alcon Llosada, Alex"]
[Result "0-1"]
[ECO "C41"]
[WhiteElo "1991"]
[BlackElo "1832"]
[Annotator "NA RC"]
[PlyCount "78"]
[EventDate "2024.02.24"]
[EventCountry "ESP"]
[SourceTitle "playchess.com"]
[Source "ChessBase"]
[SourceQuality "1"]
[TimeControl "5400+30"]

1. e4 {[%emt 1:20:59]} d6 {[%emt 1:20:59]} 2. d4 {[%emt 0:00:31]} Nf6 {[%emt 0:00:29]} 3. Nc3 {[%emt 0:00:32]} e5 {[%emt 0:00:30]} 4. Nf3 {[%emt 0:00:32]} Nbd7 {[%emt 0:00:29]} 5. Bc4 {[%emt 0:00:33]} Be7 {[%emt 0:00:29]} 6. O-O {[%emt 0:00:38]} O-O {[%emt 0:00:31]} 7. h3 {[%emt 0:00:31]} c6 {[%emt 0:00:30]} 8. Bb3 {[%emt 0:00:33]} b5 {[%emt 0:00:33]} 9. a3 {[%emt 0:00:33]} a5 {[%emt 0:00:31]} 10. Re1 {[%emt 0:00:32]} h6 {[%emt 0:00:31]} 11. Be3 {[%emt 0:00:39]} Bb7 {[%emt 0:00:34]} 12. dxe5 {[%emt 0:01:40]} dxe5 {[%emt 0:00:30]} 13. Qe2 {[%emt 0:00:37]} b4 {[%emt 0:00:30]} 14. axb4 {[%emt 0:00:32]} axb4 {[%emt 0:00:31]} 15. Na4 {[%emt 0:00:59]} Nxe4 {[%emt 0:00:34]} 16. Bxh6 {[%emt 0:00:38]} c5 {[%emt 0:00:52]} 17. Be3 {[%emt 0:00:44]} Qc7 {[%emt 0:00:52]} 18. Bc4 {[%emt 0:01:10]} Nd6 {[%emt 0:00:44]} 19. b3 {[%emt 0:01:24]} e4 {[%emt 0:01:13]} 20. Ng5 {[%emt 0:00:50]} Bf6 {[%emt 0:00:34]} 21. Qh5 {[%emt 0:00:47]} Bxg5 {[%emt 0:00:57]} 22. Qxg5 {[%emt 0:00:31]} Nxc4 {[%emt 0:00:59]} 23. bxc4 {[%emt 0:00:31]} Ra5 {[%emt 0:00:35]} 24. Nb2 {[%emt 0:00:55]} Rfa8 {[%emt 0:00:40]} 25. Rxa5 {[%emt 0:00:30]} Rxa5 {[%emt 0:00:29]} 26. Bf4 {[%emt 0:00:38]} Qb6 {[%emt 0:00:45]} 27. Qg3 {[%emt 0:00:31]} Ra2 {[%emt 0:00:34]} 28. Bc7 {[%emt 0:01:00]} Qf6 {[%emt 0:00:37]} 29. Rd1 {[%emt 0:00:44]} Bc6 {[%emt 0:02:46]} 30. Qd6 {[%emt 0:00:56]} Rxb2 {[%emt 0:00:41]} 31. Qg3 {[%emt 0:00:52]} Rxc2 {[%emt 0:00:35]} 32. Rd6 {[%emt 0:00:49]} Qa1+ {[%emt 0:00:30]} 33. Kh2 {[%emt 0:00:29]} Rc1 {[%emt 0:00:35]} 34. Qe3 {[%emt 0:00:36]} Rh1+ {[%emt 0:01:46]} 35. Kg3 {[%emt 0:00:29]} Qc3 {[%emt 0:00:31]} 36. Rxc6 {[%emt 0:00:35]} Qxe3+ {[%emt 0:00:59]} 37. fxe3 {[%emt 0:00:30]} b3 {[%emt 0:00:28]} 38. Be5 {[%emt 0:01:02]} Nxe5 {[%emt 0:00:33]} 39. Rb6 {[%emt 0:00:29]} Rb1 {[%emt 0:00:34]} 0-1

[Event "Catalan University-ch 2024"]
[Site "Barcelona"]
[Date "2024.02.24"]
[Round "1.7"]
[White "Arias Aranda, Guillem"]
[Black "Travesset Sagre, Jan"]
[Result "0-1"]
[ECO "A06"]
[WhiteElo "1800"]
[BlackElo "2193"]
[Annotator "RC"]
[PlyCount "40"]
[EventDate "2024.02.24"]
[EventCountry "ESP"]
[SourceTitle "playchess.com"]
[Source "ChessBase"]
[SourceQuality "1"]
[TimeControl "5400+30"]

1. Nc3 {[%emt 1:20:58]} d5 {[%emt 1:21:04]} 2. Nf3 {[%emt 0:00:31]} Nf6 {[%emt 0:00:31]} 3. e3 {[%emt 0:00:34]} Bg4 {[%emt 0:00:32]} 4. b3 {[%emt 0:00:31]} e5 {[%emt 0:00:34]} 5. Be2 {[%emt 0:00:29]} Bd6 {[%emt 0:00:33]} 6. d4 {[%emt 0:00:35]} e4 {[%emt 0:01:01]} 7. Ne5 {[%emt 0:01:01]} Bxe2 {[%emt 0:00:32]} 8. Qxe2 {[%emt 0:00:40]} c6 {[%emt 0:00:42]} 9. Bb2 {[%emt 0:00:45]} Nbd7 {[%emt 0:00:44]} 10. Nxd7 {[%emt 0:00:36]} Qxd7 {[%emt 0:00:33]} 11. Na4 {[%emt 0:00:41]} Qe7 {[%emt 0:00:37]} 12. a3 {[%emt 0:02:14]} O-O {[%emt 0:00:34]} 13. c4 {[%emt 0:00:36]} Rab8 {[%emt 0:02:27]} 14. b4 {[%emt 0:01:21]} dxc4 {[%emt 0:00:30]} 15. Qxc4 {[%emt 0:00:30]} b5 {[%emt 0:00:28]} 16. Qb3 {[%emt 0:00:31]} bxa4 {[%emt 0:00:30]} 17. Qxa4 {[%emt 0:00:30]} Rb5 {[%emt 0:00:34]} 18. Rc1 {[%emt 0:00:36]} Qd7 {[%emt 0:00:35]} 19. Qc2 {[%emt 0:00:37]} Rc8 {[%emt 0:01:01]} 20. Ke2 {[%emt 0:00:47]} Qg4+ {[%emt 0:00:31]} 0-1

[Event "Catalan University-ch 2024"]
[Site "Barcelona"]
[Date "2024.02.24"]
[Round "1.8"]
[White "Ros Alonso, Joana"]
[Black "Barbera Romero, Carles"]
[Result "1-0"]
[ECO "B17"]
[WhiteElo "2033"]
[BlackElo "1629"]
[Annotator "NA RC"]
[PlyCount "33"]
[EventDate "2024.02.24"]
[EventCountry "ESP"]
[SourceTitle "playchess.com"]
[Source "ChessBase"]
[SourceQuality "1"]
[TimeControl "5400+30"]

1. e4 {[%emt 1:20:59]} c6 {[%emt 1:20:57]} 2. d4 {[%emt 0:00:30]} d5 {[%emt 0:00:30]} 3. Nc3 {[%emt 0:00:30]} dxe4 {[%emt 0:00:30]} 4. Nxe4 {[%emt 0:00:29]} Nd7 {[%emt 0:00:31]} 5. Nf3 {[%emt 0:00:31]} Ngf6 {[%emt 0:00:30]} 6. Ng3 {[%emt 0:00:31]} e6 {[%emt 0:00:30]} 7. Bd3 {[%emt 0:00:33]} Be7 {[%emt 0:00:32]} 8. O-O {[%emt 0:00:42]} O-O {[%emt 0:00:31]} 9. Ne5 {[%emt 0:00:36]} c5 {[%emt 0:01:33]} 10. Nxd7 {[%emt 0:00:57]} Bxd7 {[%emt 0:00:57]} 11. dxc5 {[%emt 0:00:32]} Bxc5 {[%emt 0:00:33]} 12. Bg5 {[%emt 0:00:31]} Be7 {[%emt 0:00:31]} 13. Qe2 {[%emt 0:00:58]} Rc8 {[%emt 0:01:08]} 14. Rad1 {[%emt 0:00:38]} Qa5 {[%emt 0:00:52]} 15. Bxf6 {[%emt 0:01:04]} Bxf6 {[%emt 0:00:32]} 16. Bxh7+ {[%emt 0:01:42]} Kxh7 {[%emt 0:00:33]} 17. Rxd7 {[%emt 0:00:30]} 1-0